[Event "11th Arad Open 2018"]
[Site "Arad"]
[Date "2018.08.07"]
[Round "4"]
[White "Vujacic, Borivoje"]
[Black "Ambru, Dan-Calin"]
[Result "1-0"]
[ECO "B33"]
[WhiteElo "2235"]
[BlackElo "1977"]
[Annotator "NA"]
[PlyCount "79"]
[EventDate "2018.08.05"]
[EventType "swiss"]
[EventCountry "ROU"]
[SourceTitle "playchess.com"]
[Source "ChessBase"]
[SourceQuality "1"]
[TimeControl "40/5400+30:1800+30"]

1. e4 {[%emt 0:00:00]} c5 {[%emt 0:00:00]} 2. Nf3 {[%emt 0:00:00]} Nc6 {[%emt 0:00:00]} 3. d4 {[%emt 0:00:00]} cxd4 {[%emt 0:00:00]} 4. Nxd4 {[%emt 0:00:02]} Nf6 {[%emt 0:00:00]} 5. Nc3 {[%emt 0:00:28]} e5 {[%emt 0:01:19]} 6. Ndb5 {[%emt 0:00:39]} d6 {[%emt 0:00:08]} 7. Bg5 {[%emt 0:02:39]} a6 {[%emt 0:00:07]} 8. Na3 {[%emt 0:01:02]} b5 {[%emt 0:00:15]} 9. Nd5 {[%emt 0:00:26]} Be7 {[%emt 0:00:09]} 10. Bxf6 {[%emt 0:00:35]} Bxf6 {[%emt 0:00:07]} 11. c3 {[%emt 0:00:07]} Ne7 {[%emt 0:00:05]} 12. g3 {[%emt 0:10:03]} Bb7 {[%emt 0:06:18]} 13. Nc2 {[%emt 0:02:53]} Nxd5 {[%emt 0:07:47]} 14. exd5 {[%emt 0:00:10]} Bg5 {[%emt 0:00:08]} 15. a4 {[%emt 0:06:10]} O-O {[%emt 0:10:41]} 16. axb5 {[%emt 0:08:28]} axb5 {[%emt 0:01:02]} 17. Rxa8 {[%emt 0:01:28]} Qxa8 {[%emt 0:01:57]} 18. Nb4 {[%emt 0:00:07]} Rb8 {[%emt 0:13:36]} 19. Bg2 {[%emt 0:02:42]} Bd8 {[%emt 0:06:36]} 20. O-O {[%emt 0:01:43]} f5 {[%emt 0:06:00]} 21. Qd3 {[%emt 0:04:41]} Bb6 {[%emt 0:08:21]} 22. Qxf5 {[%emt 0:03:44]} Bc5 {[%emt 0:00:07]} 23. Be4 {[%emt 0:01:22]} g6 {[%emt 0:05:58]} 24. Qe6+ {[%emt 0:00:40]} Kg7 {[%emt 0:02:03]} 25. Qe7+ {[%emt 0:02:39]} Kg8 {[%emt 0:01:34]} 26. Nc6 {[%emt 0:00:23]} Rf8 {[%emt 0:11:15]} 27. b4 {[%emt 0:02:38]} Rf7 {[%emt 0:00:52]} 28. Qd8+ {[%emt 0:00:38]} Qxd8 {[%emt 0:02:05]} 29. Nxd8 {[%emt 0:00:13]} Bb6 {[%emt 0:03:53]} 30. Nxf7 {[%emt 0:00:43]} Kxf7 {[%emt 0:00:07]} 31. Ra1 {[%emt 0:03:12]} Kf6 {[%emt 0:01:48]} 32. Bd3 {[%emt 0:00:56]} Bxd5 {[%emt 0:00:20]} 33. Ra6 {[%emt 0:00:16]} Bc7 {[%emt 0:02:10]} 34. Bxb5 {[%emt 0:00:56]} Ke6 {[%emt 0:02:33]} 35. Ra7 {[%emt 0:00:36]} Bb6 {[%emt 0:01:26]} 36. Rxh7 {[%emt 0:00:11]} Bf3 {[%emt 0:00:24]} 37. Kf1 {[%emt 0:02:16]} Kf6 {[%emt 0:01:56]} 38. Bc4 {[%emt 0:03:02]} d5 {[%emt 0:01:05]} 39. Be2 {[%emt 0:00:52]} Be4 {[%emt 0:00:19]} 40. Rd7 {[%emt 0:00:00]} 1-0

[Event "11th Arad Open 2018"]
[Site "Arad"]
[Date "2018.08.07"]
[Round "4"]
[White "Geiger, Alex-Emanuel"]
[Black "Anghel, Iulian-Mihai"]
[Result "1-0"]
[ECO "B04"]
[WhiteElo "2229"]
[BlackElo "1967"]
[Annotator "NA"]
[PlyCount "81"]
[EventDate "2018.08.05"]
[EventType "swiss"]
[EventCountry "ROU"]
[SourceTitle "playchess.com"]
[Source "ChessBase"]
[SourceQuality "1"]
[TimeControl "40/5400+30:1800+30"]

1. e4 {[%emt 0:00:01]} Nf6 {[%emt 0:00:00]} 2. e5 {[%emt 0:00:16]} Nd5 {[%emt 0:00:00]} 3. d4 {[%emt 0:00:27]} d6 {[%emt 0:00:00]} 4. Nf3 {[%emt 0:00:38]} dxe5 {[%emt 0:00:00]} 5. Nxe5 {[%emt 0:00:24]} c6 {[%emt 0:00:10]} 6. Bc4 {[%emt 0:00:34]} Nd7 {[%emt 0:07:43]} 7. Nf3 {[%emt 0:00:35]} N7b6 {[%emt 0:01:15]} 8. Bb3 {[%emt 0:01:03]} Bg4 {[%emt 0:00:30]} 9. h3 {[%emt 0:00:26]} Bxf3 {[%emt 0:03:14]} 10. Qxf3 {[%emt 0:00:07]} e6 {[%emt 0:00:07]} 11. O-O {[%emt 0:00:49]} Be7 {[%emt 0:01:08]} 12. c4 {[%emt 0:01:59]} Nf6 {[%emt 0:00:23]} 13. Be3 {[%emt 0:00:07]} O-O {[%emt 0:03:00]} 14. Nc3 {[%emt 0:00:13]} Rc8 {[%emt 0:10:56]} 15. Rfd1 {[%emt 0:02:57]} Nfd7 {[%emt 0:06:40]} 16. d5 {[%emt 0:09:25]} exd5 {[%emt 0:08:40]} 17. cxd5 {[%emt 0:00:19]} Qe8 {[%emt 0:09:36]} 18. Re1 {[%emt 0:12:31]} Qd8 {[%emt 0:06:10]} 19. Rad1 {[%emt 0:00:38]} c5 {[%emt 0:02:21]} 20. d6 {[%emt 0:05:50]} Bg5 {[%emt 0:00:49]} 21. Qxb7 {[%emt 0:05:34]} c4 {[%emt 0:00:43]} 22. Bc2 {[%emt 0:00:05]} Bxe3 {[%emt 0:02:30]} 23. Rxe3 {[%emt 0:00:07]} Nc5 {[%emt 0:00:08]} 24. Qf3 {[%emt 0:07:26]} Qg5 {[%emt 0:05:27]} 25. Nd5 {[%emt 0:05:06]} Kh8 {[%emt 0:03:47]} 26. Nxb6 {[%emt 0:08:24]} axb6 {[%emt 0:00:09]} 27. d7 {[%emt 0:04:41]} Rcd8 {[%emt 0:00:31]} 28. Rd5 {[%emt 0:00:05]} Qf6 {[%emt 0:00:52]} 29. Qxf6 {[%emt 0:02:00]} gxf6 {[%emt 0:00:08]} 30. Rh5 {[%emt 0:02:32]} Nd3 {[%emt 0:00:16]} 31. Bxd3 {[%emt 0:00:41]} cxd3 {[%emt 0:00:12]} 32. Rxd3 {[%emt 0:00:05]} Kg7 {[%emt 0:00:23]} 33. Rb5 {[%emt 0:00:20]} Rb8 {[%emt 0:00:06]} 34. a4 {[%emt 0:01:20]} Rfd8 {[%emt 0:00:59]} 35. a5 {[%emt 0:00:20]} Kf8 {[%emt 0:00:10]} 36. Rxb6 {[%emt 0:00:46]} Ra8 {[%emt 0:00:25]} 37. b4 {[%emt 0:00:12]} Ke7 {[%emt 0:00:07]} 38. a6 {[%emt 0:03:47]} Ra7 {[%emt 0:00:44]} 39. b5 {[%emt 0:00:12]} Rdxd7 {[%emt 0:00:00]} 40. Rxd7+ {[%emt 0:00:00]} Kxd7 {[%emt 0:00:00]} 41. Rxf6 {[%emt 0:15:14]} 1-0

[Event "11th Arad Open 2018"]
[Site "Arad"]
[Date "2018.08.07"]
[Round "4"]
[White "Martian, Dragos-Daniel"]
[Black "Plugaru, Rares"]
[Result "1-0"]
[ECO "B22"]
[WhiteElo "2223"]
[BlackElo "1948"]
[Annotator "NA"]
[PlyCount "67"]
[EventDate "2018.08.05"]
[EventType "swiss"]
[EventCountry "ROU"]
[SourceTitle "playchess.com"]
[Source "ChessBase"]
[SourceQuality "1"]
[TimeControl "40/5400+30:1800+30"]

1. e4 {[%emt 0:00:29]} c5 {[%emt 0:00:54]} 2. c3 {[%emt 0:00:24]} Nf6 {[%emt 0:00:45]} 3. e5 {[%emt 0:00:34]} Nd5 {[%emt 0:00:10]} 4. d4 {[%emt 0:00:01]} cxd4 {[%emt 0:01:53]} 5. Nf3 {[%emt 0:00:02]} Nc6 {[%emt 0:02:19]} 6. cxd4 {[%emt 0:00:15]} d6 {[%emt 0:01:59]} 7. Bc4 {[%emt 0:00:17]} Nb6 {[%emt 0:15:23]} 8. Bb3 {[%emt 0:00:29]} dxe5 {[%emt 0:01:13]} 9. d5 {[%emt 0:00:08]} Nd4 {[%emt 0:01:43]} 10. Nxd4 {[%emt 0:00:41]} exd4 {[%emt 0:00:06]} 11. Qxd4 {[%emt 0:00:08]} e6 {[%emt 0:02:39]} 12. O-O {[%emt 0:04:07]} Nxd5 {[%emt 0:02:56]} 13. Rd1 {[%emt 0:03:59]} Qb6 {[%emt 0:07:11]} 14. Ba4+ {[%emt 0:05:21]} Bd7 {[%emt 0:00:27]} 15. Bxd7+ {[%emt 0:01:00]} Kxd7 {[%emt 0:00:05]} 16. Qg4 {[%emt 0:00:07]} Ke8 {[%emt 0:01:57]} 17. Nc3 {[%emt 0:02:45]} Nxc3 {[%emt 0:21:29]} 18. bxc3 {[%emt 0:00:08]} Qc6 {[%emt 0:03:30]} 19. Be3 {[%emt 0:04:12]} f5 {[%emt 0:09:33]} 20. Qg5 {[%emt 0:05:07]} Kf7 {[%emt 0:03:02]} 21. Bd4 {[%emt 0:02:42]} h6 {[%emt 0:07:51]} 22. Qe3 {[%emt 0:04:50]} Bd6 {[%emt 0:02:52]} 23. Bxa7 {[%emt 0:04:18]} Rhc8 {[%emt 0:06:08]} 24. Rab1 {[%emt 0:04:41]} b5 {[%emt 0:01:05]} 25. a4 {[%emt 0:04:54]} Bxh2+ {[%emt 0:03:58]} 26. Kh1 {[%emt 0:05:47]} Qa6 {[%emt 0:01:19]} 27. Rd7+ {[%emt 0:03:19]} Kg8 {[%emt 0:00:26]} 28. Kxh2 {[%emt 0:00:57]} Qc6 {[%emt 0:00:34]} 29. Rbd1 {[%emt 0:00:21]} Rc7 {[%emt 0:00:30]} 30. axb5 {[%emt 0:01:42]} Qb7 {[%emt 0:00:31]} 31. Qxe6+ {[%emt 0:00:19]} Kh8 {[%emt 0:00:28]} 32. Rd8+ {[%emt 0:00:33]} Kh7 {[%emt 0:00:02]} 33. Qxf5+ {[%emt 0:00:40]} g6 {[%emt 0:00:00]} 34. R1d7+ {[%emt 0:00:12]} 1-0

[Event "11th Arad Open 2018"]
[Site "Arad"]
[Date "2018.08.07"]
[Round "4"]
[White "Weinzettl, Ernst"]
[Black "Vilcu, Matei-Stefan"]
[Result "1-0"]
[ECO "A00"]
[WhiteElo "2215"]
[BlackElo "1925"]
[Annotator "NA"]
[PlyCount "121"]
[EventDate "2018.08.05"]
[EventType "swiss"]
[EventCountry "ROU"]
[SourceTitle "playchess.com"]
[Source "ChessBase"]
[SourceQuality "1"]
[TimeControl "40/5400+30:1800+30"]

1. d3 g6 {[%emt 0:03:01]} 2. g3 {[%emt 0:00:27]} Bg7 {[%emt 0:00:12]} 3. Bg2 {[%emt 0:00:09]} d6 {[%emt 0:01:12]} 4. c3 {[%emt 0:00:59]} Nd7 {[%emt 0:02:27]} 5. e4 {[%emt 0:03:12]} e5 {[%emt 0:01:16]} 6. Ne2 {[%emt 0:02:46]} Ngf6 {[%emt 0:03:13]} 7. Na3 {[%emt 0:07:28]} O-O {[%emt 0:01:40]} 8. Nc4 {[%emt 0:01:12]} Qe7 {[%emt 0:03:04]} 9. b4 {[%emt 0:03:48]} c6 {[%emt 0:05:45]} 10. a4 {[%emt 0:06:14]} d5 {[%emt 0:10:28]} 11. Ne3 {[%emt 0:00:32]} dxe4 {[%emt 0:01:27]} 12. dxe4 {[%emt 0:00:16]} Rd8 {[%emt 0:00:34]} 13. Qc2 {[%emt 0:00:52]} a5 {[%emt 0:04:56]} 14. Ba3 {[%emt 0:02:59]} axb4 {[%emt 0:04:40]} 15. cxb4 {[%emt 0:00:34]} Qe8 {[%emt 0:04:27]} 16. O-O {[%emt 0:14:57]} Nf8 {[%emt 0:04:32]} 17. Bb2 {[%emt 0:00:27]} Nh5 {[%emt 0:13:23]} 18. Nc4 {[%emt 0:02:36]} f6 {[%emt 0:02:43]} 19. Nb6 {[%emt 0:03:17]} Rb8 {[%emt 0:03:23]} 20. Nxc8 {[%emt 0:03:08]} Rbxc8 {[%emt 0:00:33]} 21. Bh3 {[%emt 0:01:54]} Ra8 {[%emt 0:02:21]} 22. Bc1 {[%emt 0:12:02]} Kh8 {[%emt 0:09:14]} 23. Qc4 {[%emt 0:06:37]} b5 {[%emt 0:08:50]} 24. Qb3 {[%emt 0:02:57]} bxa4 {[%emt 0:00:24]} 25. Qc4 {[%emt 0:06:55]} Rd6 {[%emt 0:02:15]} 26. Be3 {[%emt 0:04:18]} a3 {[%emt 0:03:22]} 27. Qb3 {[%emt 0:01:37]} Ne6 {[%emt 0:01:16]} 28. Rxa3 {[%emt 0:00:33]} Rxa3 {[%emt 0:00:36]} 29. Qxa3 {[%emt 0:00:10]} Bf8 {[%emt 0:01:11]} 30. Qa7 {[%emt 0:03:41]} Rd8 {[%emt 0:01:15]} 31. Rc1 {[%emt 0:03:15]} Nd4 {[%emt 0:00:47]} 32. Nxd4 {[%emt 0:01:15]} exd4 {[%emt 0:00:07]} 33. Bxd4 {[%emt 0:00:26]} Qxe4 {[%emt 0:00:11]} 34. Bc3 {[%emt 0:01:36]} Bg7 {[%emt 0:01:28]} 35. Qc7 {[%emt 0:00:38]} Qd3 {[%emt 0:00:37]} 36. Bf1 {[%emt 0:00:34]} Qd6 {[%emt 0:00:23]} 37. Qxd6 Rxd6 38. Ra1 {[%emt 0:01:02]} Bf8 {[%emt 0:00:42]} 39. Ra8 {[%emt 0:00:42]} Kg7 {[%emt 0:00:47]} 40. Rc8 {[%emt 0:00:00]} Kf7 {[%emt 0:00:00]} 41. Kg2 {[%emt 0:20:43]} Ng7 {[%emt 0:22:21]} 42. b5 {[%emt 0:04:01]} cxb5 {[%emt 0:08:12]} 43. Bb4 {[%emt 0:00:09]} Ne8 {[%emt 0:01:35]} 44. Bxb5 {[%emt 0:01:57]} Re6 {[%emt 0:00:34]} 45. Bc4 {[%emt 0:00:08]} Bxb4 46. Bxe6+ {[%emt 0:00:11]} Kxe6 {[%emt 0:00:28]} 47. Rxe8+ {[%emt 0:00:11]} Kf7 {[%emt 0:00:02]} 48. Rb8 {[%emt 0:00:14]} Be7 {[%emt 0:00:12]} 49. Kf3 {[%emt 0:00:14]} h5 {[%emt 0:00:08]} 50. Ke4 {[%emt 0:00:40]} Ke6 {[%emt 0:00:06]} 51. Rb6+ {[%emt 0:00:16]} Bd6 {[%emt 0:00:16]} 52. Ra6 {[%emt 0:00:02]} f5+ {[%emt 0:00:28]} 53. Kd4 {[%emt 0:00:07]} g5 {[%emt 0:00:07]} 54. h3 {[%emt 0:01:31]} h4 {[%emt 0:00:42]} 55. gxh4 {[%emt 0:00:13]} gxh4 {[%emt 0:00:05]} 56. f3 {[%emt 0:00:10]} Ke7 {[%emt 0:00:14]} 57. Kd5 {[%emt 0:00:27]} Bg3 {[%emt 0:00:12]} 58. Ra4 {[%emt 0:00:21]} Kf6 {[%emt 0:00:16]} 59. f4 {[%emt 0:00:09]} Bf2 {[%emt 0:00:37]} 60. Ra6+ {[%emt 0:00:07]} Kf7 {[%emt 0:00:25]} 61. Ke5 {[%emt 0:00:09]} 1-0

[Event "11th Arad Open 2018"]
[Site "Arad"]
[Date "2018.08.07"]
[Round "4"]
[White "Ghimpu, Samuel-Timotei"]
[Black "Farkas, Gabor"]
[Result "0-1"]
[ECO "A07"]
[WhiteElo "2184"]
[BlackElo "2366"]
[Annotator "NA"]
[PlyCount "52"]
[EventDate "2018.08.05"]
[EventType "swiss"]
[EventCountry "ROU"]
[SourceTitle "playchess.com"]
[Source "ChessBase"]
[SourceQuality "1"]
[TimeControl "40/5400+30:1800+30"]

1. Nf3 {[%emt 0:00:00]} Nf6 {[%emt 0:00:00]} 2. g3 {[%emt 0:00:00]} d5 {[%emt 0:00:00]} 3. Bg2 {[%emt 0:00:10]} c6 {[%emt 0:00:14]} 4. O-O {[%emt 0:00:19]} Bg4 {[%emt 0:00:33]} 5. d4 {[%emt 0:12:44]} e6 {[%emt 0:01:57]} 6. c4 {[%emt 0:03:14]} Nbd7 {[%emt 0:01:15]} 7. b3 {[%emt 0:01:17]} Be7 {[%emt 0:02:37]} 8. Bb2 {[%emt 0:02:21]} O-O {[%emt 0:01:58]} 9. Nbd2 {[%emt 0:00:46]} h6 {[%emt 0:05:28]} 10. Re1 {[%emt 0:05:38]} Bf5 {[%emt 0:08:22]} 11. e3 {[%emt 0:19:21]} Re8 {[%emt 0:03:43]} 12. Rc1 {[%emt 0:03:41]} a5 {[%emt 0:05:38]} 13. Ne5 {[%emt 0:03:51]} Bb4 {[%emt 0:03:55]} 14. Nxd7 {[%emt 0:01:18]} Qxd7 {[%emt 0:05:10]} 15. a3 {[%emt 0:03:56]} Bxd2 {[%emt 0:00:20]} 16. Qxd2 {[%emt 0:00:02]} a4 {[%emt 0:01:01]} 17. f3 {[%emt 0:03:41]} axb3 {[%emt 0:08:49]} 18. e4 {[%emt 0:00:23]} Bg6 {[%emt 0:00:07]} 19. Qb4 {[%emt 0:08:26]} Reb8 {[%emt 0:09:30]} 20. Qxb3 {[%emt 0:08:24]} b5 {[%emt 0:01:07]} 21. cxd5 {[%emt 0:01:02]} exd5 {[%emt 0:02:36]} 22. Rc5 {[%emt 0:06:54]} Ra4 {[%emt 0:09:26]} 23. exd5 {[%emt 0:10:06]} Nxd5 {[%emt 0:01:22]} 24. f4 {[%emt 0:00:42]} Re8 {[%emt 0:00:33]} 25. Re5 {[%emt 0:02:02]} Rxe5 {[%emt 0:03:17]} 26. dxe5 {[%emt 0:01:01]} Qa7 {[%emt 0:00:18]} 0-1

[Event "11th Arad Open 2018"]
[Site "Arad"]
[Date "2018.08.07"]
[Round "4"]
[White "Baciu, Anca-Otilia"]
[Black "Vajda, Levente"]
[Result "0-1"]
[ECO "C54"]
[WhiteElo "2096"]
[BlackElo "2558"]
[Annotator "ChessBase"]
[PlyCount "86"]
[EventDate "2018.08.05"]
[EventType "swiss"]
[EventCountry "ROU"]
[SourceTitle "playchess.com"]
[Source "ChessBase"]
[SourceQuality "1"]
[TimeControl "40/5400+30:1800+30"]

1. e4 {[%emt 0:00:00]} e5 {[%emt 0:00:00]} 2. Nf3 {[%emt 0:00:00]} Nc6 {[%emt 0:00:00]} 3. Bc4 {[%emt 0:00:00]} Bc5 {[%emt 0:00:00]} 4. c3 {[%emt 0:00:01]} Nf6 {[%emt 0:00:00]} 5. d3 {[%emt 0:00:12]} O-O {[%emt 0:00:29]} 6. O-O {[%emt 0:00:40]} d5 {[%emt 0:01:08]} 7. exd5 {[%emt 0:02:44]} Nxd5 {[%emt 0:00:06]} 8. b4 {[%emt 0:04:59]} Be7 {[%emt 0:01:29]} 9. b5 {[%emt 0:02:28]} Na5 {[%emt 0:00:07]} 10. Nxe5 {[%emt 0:07:49]} Bf6 {[%emt 0:04:23]} 11. Qh5 {[%emt 0:08:46]} Nxc4 {[%emt 0:12:12]} 12. dxc4 {[%emt 0:00:10]} Nb6 {[%emt 0:00:32]} 13. c5 {[%emt 0:15:21]} g6 {[%emt 0:04:18]} 14. Qe2 {[%emt 0:00:50]} Re8 {[%emt 0:00:55]} 15. f4 {[%emt 0:01:14]} Nd7 {[%emt 0:00:57]} 16. Qf2 {[%emt 0:03:53]} Qe7 {[%emt 0:09:15]} 17. Ng4 {[%emt 0:08:58]} Bg7 {[%emt 0:00:58]} 18. f5 {[%emt 0:01:55]} Qxc5 {[%emt 0:00:52]} 19. Be3 {[%emt 0:08:53]} Qxf5 {[%emt 0:01:36]} 20. Qg3 {[%emt 0:00:15]} Qd3 {[%emt 0:12:04]} 21. Qf2 {[%emt 0:05:31]} f5 {[%emt 0:01:46]} 22. Nh6+ {[%emt 0:00:49]} Bxh6 {[%emt 0:00:17]} 23. Bxh6 {[%emt 0:00:05]} Nf6 {[%emt 0:00:56]} 24. Qc5 {[%emt 0:09:12]} Bd7 {[%emt 0:14:20]} 25. Na3 {[%emt 0:04:27]} Qd5 {[%emt 0:03:16]} 26. Qxd5+ {[%emt 0:05:00]} Nxd5 {[%emt 0:00:13]} 27. Rfd1 {[%emt 0:01:04]} Be6 {[%emt 0:00:34]} 28. Rac1 {[%emt 0:00:34]} Rad8 {[%emt 0:02:42]} 29. Nc4 {[%emt 0:01:34]} Nf6 {[%emt 0:01:19]} 30. Na5 {[%emt 0:00:56]} Rxd1+ {[%emt 0:09:01]} 31. Rxd1 {[%emt 0:00:05]} b6 {[%emt 0:00:28]} 32. Nc6 {[%emt 0:00:19]} Bxa2 {[%emt 0:00:06]} 33. Nxa7 {[%emt 0:01:36]} Bb3 {[%emt 0:00:22]} 34. Rd4 {[%emt 0:02:16]} Re1+ {[%emt 0:00:32]} 35. Kf2 {[%emt 0:00:11]} Ra1 {[%emt 0:00:14]} 36. Rd8+ {[%emt 0:00:39]} Kf7 {[%emt 0:00:06]} 37. Rf8+ {[%emt 0:01:11]} Ke6 {[%emt 0:00:06]} 38. Nc6 {[%emt 0:02:10]} Ng4+ {[%emt 0:00:09]} 39. Kg3 {[%emt 0:00:24]} Nxh6 {[%emt 0:00:07]} 40. Nd4+ {[%emt 0:00:00]} Ke7 {[%emt 0:00:00]} 41. Nxb3 {[%emt 0:16:53]} Ra3 {[%emt 0:15:28]} 42. Rc8 {[%emt 0:00:45]} Rxb3 {[%emt 0:00:31]} 43. Rxc7+ {[%emt 0:00:06]} Kf6 {[%emt 0:00:26]} 0-1

[Event "11th Arad Open 2018"]
[Site "Arad"]
[Date "2018.08.07"]
[Round "4"]
[White "Miloi, Pavel-Dan"]
[Black "Dobre, Claudiu-Cristian"]
[Result "1/2-1/2"]
[ECO "D47"]
[WhiteElo "2047"]
[BlackElo "2356"]
[Annotator "NA"]
[PlyCount "156"]
[EventDate "2018.08.05"]
[EventType "swiss"]
[EventCountry "ROU"]
[SourceTitle "playchess.com"]
[Source "ChessBase"]
[SourceQuality "1"]
[TimeControl "40/5400+30:1800+30"]

1. d4 {[%emt 0:00:00]} Nf6 {[%emt 0:00:11]} 2. Nf3 {[%emt 0:00:00]} e6 {[%emt 0:00:40]} 3. c4 {[%emt 0:00:00]} d5 {[%emt 0:00:08]} 4. Nc3 {[%emt 0:00:32]} c6 {[%emt 0:00:05]} 5. e3 {[%emt 0:00:45]} Nbd7 {[%emt 0:00:08]} 6. Bd3 {[%emt 0:00:05]} dxc4 {[%emt 0:02:09]} 7. Bxc4 {[%emt 0:00:06]} b5 {[%emt 0:00:02]} 8. Be2 {[%emt 0:00:05]} a6 {[%emt 0:01:32]} 9. O-O {[%emt 0:03:09]} c5 {[%emt 0:08:29]} 10. dxc5 {[%emt 0:06:25]} Bxc5 {[%emt 0:01:06]} 11. a3 {[%emt 0:03:26]} Bb7 {[%emt 0:09:00]} 12. b4 {[%emt 0:00:49]} Be7 {[%emt 0:00:51]} 13. Bb2 {[%emt 0:01:00]} O-O {[%emt 0:02:24]} 14. Rc1 {[%emt 0:01:15]} Rc8 {[%emt 0:14:59]} 15. Qb3 {[%emt 0:01:14]} Bd6 {[%emt 0:04:09]} 16. Rfd1 {[%emt 0:17:35]} Qe7 {[%emt 0:01:54]} 17. Nd2 {[%emt 0:04:16]} e5 {[%emt 0:08:07]} 18. e4 {[%emt 0:01:52]} Nb6 {[%emt 0:06:48]} 19. f3 {[%emt 0:06:18]} Nh5 {[%emt 0:17:20]} 20. g3 {[%emt 0:00:22]} Qg5 {[%emt 0:00:22]} 21. Nf1 {[%emt 0:00:48]} Rfd8 {[%emt 0:04:06]} 22. Kh1 {[%emt 0:05:38]} Be7 {[%emt 0:05:48]} 23. Rxd8+ {[%emt 0:01:51]} Rxd8 {[%emt 0:01:28]} 24. Rd1 {[%emt 0:00:41]} g6 {[%emt 0:00:53]} 25. Bc1 {[%emt 0:02:07]} Qf6 {[%emt 0:00:25]} 26. Ne3 {[%emt 0:01:44]} Rxd1+ {[%emt 0:03:23]} 27. Bxd1 {[%emt 0:02:00]} Qd6 {[%emt 0:00:36]} 28. Be2 {[%emt 0:04:57]} Ng7 {[%emt 0:00:25]} 29. Ng4 {[%emt 0:06:16]} Ne6 {[%emt 0:00:44]} 30. Be3 {[%emt 0:01:02]} Nd7 {[%emt 0:04:02]} 31. Qd1 {[%emt 0:13:19]} Nd4 {[%emt 0:01:13]} 32. Kg2 {[%emt 0:07:24]} h5 {[%emt 0:00:53]} 33. Nf2 {[%emt 0:00:34]} Nb6 {[%emt 0:00:45]} 34. Nd3 {[%emt 0:02:32]} Nc4 {[%emt 0:00:18]} 35. Bc1 {[%emt 0:00:24]} Nxe2 {[%emt 0:00:54]} 36. Qxe2 {[%emt 0:00:19]} Qd4 {[%emt 0:00:34]} 37. Nd1 {[%emt 0:03:14]} Bd8 {[%emt 0:00:50]} 38. Nc5 {[%emt 0:02:35]} Bc8 {[%emt 0:00:21]} 39. Qd3 {[%emt 0:00:13]} Qxd3 {[%emt 0:00:23]} 40. Nxd3 {[%emt 0:00:00]} Bb6 {[%emt 0:00:00]} 41. h4 {[%emt 0:12:09]} Bd4 {[%emt 0:01:17]} 42. Kf1 {[%emt 0:01:08]} f6 {[%emt 0:01:11]} 43. Ke2 {[%emt 0:00:07]} Kf7 {[%emt 0:01:00]} 44. Ne3 {[%emt 0:07:39]} Bxe3 {[%emt 0:04:15]} 45. Bxe3 {[%emt 0:00:01]} Nxa3 {[%emt 0:00:08]} 46. Nc5 {[%emt 0:01:27]} Ke7 {[%emt 0:04:01]} 47. Kd3 {[%emt 0:00:55]} Nc4 {[%emt 0:00:39]} 48. Nb3 {[%emt 0:02:36]} Bh3 {[%emt 0:04:29]} 49. Bc5+ {[%emt 0:03:16]} Kd8 {[%emt 0:01:51]} 50. Nd2 {[%emt 0:00:24]} Nb2+ {[%emt 0:01:41]} 51. Kc2 {[%emt 0:01:14]} Na4 {[%emt 0:00:19]} 52. Be3 {[%emt 0:01:40]} Bg2 {[%emt 0:01:39]} 53. Kd3 {[%emt 0:00:20]} Kc7 {[%emt 0:02:33]} 54. Ke2 {[%emt 0:00:19]} Nc3+ {[%emt 0:00:36]} 55. Kd3 {[%emt 0:00:44]} Nd1 {[%emt 0:03:15]} 56. Ke2 {[%emt 0:02:36]} Nxe3 {[%emt 0:03:40]} 57. Kxe3 {[%emt 0:00:01]} a5 {[%emt 0:00:15]} 58. Kf2 {[%emt 0:02:18]} Bh3 {[%emt 0:00:43]} 59. g4 {[%emt 0:00:45]} f5 {[%emt 0:02:14]} 60. exf5 {[%emt 0:00:52]} gxf5 {[%emt 0:00:16]} 61. g5 {[%emt 0:00:55]} f4 {[%emt 0:00:21]} 62. bxa5 {[%emt 0:00:32]} Bf5 {[%emt 0:01:02]} 63. Ke2 {[%emt 0:01:04]} Kb7 {[%emt 0:03:48]} 64. Nb3 {[%emt 0:00:26]} Ka6 {[%emt 0:00:38]} 65. Kd2 {[%emt 0:00:40]} b4 {[%emt 0:00:04]} 66. Kc1 {[%emt 0:00:51]} Kb5 {[%emt 0:00:15]} 67. Kd2 {[%emt 0:00:57]} Bg6 {[%emt 0:01:10]} 68. Kc1 {[%emt 0:00:38]} Bf7 {[%emt 0:01:07]} 69. Kb2 {[%emt 0:00:24]} Bxb3 {[%emt 0:01:02]} 70. Kxb3 {[%emt 0:00:01]} e4 {[%emt 0:00:05]} 71. g6 {[%emt 0:00:32]} e3 {[%emt 0:00:14]} 72. g7 {[%emt 0:00:04]} e2 {[%emt 0:00:03]} 73. g8=Q {[%emt 0:00:05]} e1=Q {[%emt 0:00:04]} 74. Qd5+ {[%emt 0:00:24]} Ka6 {[%emt 0:00:07]} 75. Qa8+ {[%emt 0:00:41]} Kb5 {[%emt 0:00:03]} 76. Qd5+ {[%emt 0:00:04]} Ka6 {[%emt 0:00:03]} 77. Qa8+ {[%emt 0:00:05]} Kb5 {[%emt 0:00:03]} 78. Qc6+ Kxa5 1/2-1/2

[Event "11th Arad Open 2018"]
[Site "Arad"]
[Date "2018.08.07"]
[Round "4"]
[White "Kersten, Julian"]
[Black "Banzea, Alexandru-Bogdan"]
[Result "0-1"]
[ECO "A45"]
[WhiteElo "2034"]
[BlackElo "2313"]
[Annotator "NA"]
[PlyCount "36"]
[EventDate "2018.08.05"]
[EventType "swiss"]
[EventCountry "ROU"]
[SourceTitle "playchess.com"]
[Source "ChessBase"]
[SourceQuality "1"]
[TimeControl "40/5400+30:1800+30"]

1. d4 {[%emt 0:00:29]} Nf6 {[%emt 0:00:00]} 2. Bg5 {[%emt 0:00:16]} d5 {[%emt 0:01:45]} 3. e3 {[%emt 0:00:47]} c5 {[%emt 0:00:07]} 4. Nd2 {[%emt 0:00:29]} Nc6 {[%emt 0:01:25]} 5. c3 {[%emt 0:02:24]} cxd4 {[%emt 0:05:03]} 6. exd4 {[%emt 0:00:33]} Bf5 {[%emt 0:01:04]} 7. Ngf3 {[%emt 0:04:38]} e6 {[%emt 0:00:30]} 8. Nh4 {[%emt 0:04:20]} Bg6 {[%emt 0:01:14]} 9. Nxg6 {[%emt 0:00:43]} hxg6 {[%emt 0:00:13]} 10. Bd3 {[%emt 0:02:12]} Bd6 {[%emt 0:00:36]} 11. h3 {[%emt 0:01:49]} a6 {[%emt 0:01:57]} 12. Qe2 {[%emt 0:02:14]} Rh5 {[%emt 0:02:33]} 13. h4 {[%emt 0:04:07]} Qc7 {[%emt 0:01:24]} 14. g4 {[%emt 0:09:22]} Rh8 {[%emt 0:00:44]} 15. Qf3 {[%emt 0:11:25]} O-O-O {[%emt 0:03:30]} 16. Bxf6 {[%emt 0:02:41]} gxf6 {[%emt 0:02:30]} 17. Qxf6 {[%emt 0:01:17]} e5 {[%emt 0:00:53]} 18. dxe5 {[%emt 0:03:23]} Nxe5 {[%emt 0:00:31]} 0-1